bitfinex/quotes_SOLUSD_20240814
["timestamp","ask_amount","ask_price","bid_price","bid_amount"]
[1723676488846,26.5937,144.54,144.46,24.53073134]
[1723676489746,26.5937,144.54,144.47,0.25098]
[1723676489950,26.5937,144.54,144.47,45.25098]
[1723676492941,26.5937,144.54,144.47,45.12549]
[1723676493146,16.0388,144.53,144.47,45.0]
[1723676493450,20.0,144.52,144.47,45.0]
[1723676498745,20.0,144.52,144.48,0.37647]
[1723676499052,20.0,144.52,144.48,0.50196]
[1723676499445,20.0,144.52,144.48,0.37647]
[1723676499668,20.0,144.52,144.47,45.0]
[1723676501737,20.0,144.52,144.48,0.12549]
[1723676501953,20.0,144.52,144.48,0.50196]
[1723676502849,20.0,144.52,144.48,7.42326]
[1723676503049,20.0,144.52,144.49,45.0]
[1723676503251,20.0,144.52,144.5,0.12549]
[1723676507359,20.0,144.52,144.49,45.0]
[1723676507556,20.0,144.52,144.48,45.50196]
[1723676507756,20.0,144.52,144.49,0.25098]
[1723676510145,20.0,144.52,144.48,45.25098]
[1723676510346,20.0,144.52,144.46,14.14743134]
[1723676510541,20.0,144.52,144.47,6.9218]
[1723676511757,20.0,144.52,144.48,45.50196]
[1723676515350,20.0,144.52,144.48,52.42326]
[1723676515753,20.0,144.52,144.48,45.50196]
[1723676517864,20.0,144.52,144.48,52.42326]
[1723676518869,20.0,144.52,144.5,0.12549]
[1723676519077,16.0388,144.53,144.5,45.50196]
[1723676521670,16.0388,144.53,144.5,0.37647]
[1723676522654,16.0388,144.53,144.51,0.12549]
[1723676522948,16.0388,144.53,144.51,0.37647]
[1723676524286,16.0388,144.53,144.52,0.12549]
[1723676524475,15.0683,144.57,144.52,0.37647]
[1723676524694,15.0683,144.57,144.53,0.12549]
[1723676524981,15.0683,144.57,144.54,0.12549]
[1723676525184,15.0683,144.57,144.54,0.37647]
[1723676525883,15.0683,144.57,144.55,0.12549]
[1723676526063,15.0683,144.57,144.56,0.12549]
[1723676526386,15.0683,144.57,144.56,0.25098]
[1723676526675,15.0683,144.57,144.55,45.0]
[1723676526883,15.0683,144.57,144.54,45.37647]
[1723676527086,15.0683,144.57,144.55,0.12549]
[1723676529256,15.0683,144.57,144.55,7.04329]
[1723676529563,15.0683,144.57,144.56,45.37647]
[1723676529775,15.0683,144.57,144.56,45.50196]
[1723676530368,15.0683,144.57,144.56,0.50196]
[1723676531189,16.0953,144.6,144.56,0.50196]
[1723676531374,20.0,144.59,144.57,0.37647]
[1723676532974,20.0,144.59,144.56,0.12549]
[1723676533171,20.0,144.59,144.56,0.37647]
[1723676533380,20.0,144.59,144.56,0.12549]
[1723676533684,20.0,144.59,144.55,45.0]
[1723676533882,20.0,144.59,144.54,45.12549]
[1723676534462,20.0,144.59,144.54,52.04389]
[1723676534668,20.0,144.59,144.55,0.37647]
[1723676534872,20.0,144.59,144.56,0.12549]
[1723676535072,20.0,144.59,144.5,17.3002]
[1723676535273,15.4085,144.58,144.52,6.9194]
[1723676536268,15.4085,144.58,144.53,0.25098]
[1723676536466,15.4085,144.58,144.54,0.12549]
[1723676536691,20.0,144.57,144.54,0.12549]
[1723676536870,20.0,144.57,144.53,45.12549]
[1723676540677,20.0,144.57,144.54,0.12549]
[1723676540878,20.0,144.57,144.54,0.37647]
[1723676541083,15.4085,144.58,144.55,0.12549]
[1723676541392,15.4085,144.58,144.55,45.25098]
[1723676541882,15.4085,144.58,144.55,0.25098]
[1723676544491,15.4085,144.58,144.56,0.12549]
[1723676544988,15.4085,144.58,144.56,0.25098]
[1723676546583,15.4085,144.58,144.56,0.12549]
[1723676546789,15.4085,144.58,144.54,45.0]
[1723676548103,15.4085,144.58,144.54,0.12549]
[1723676548302,15.4085,144.58,144.54,0.37647]
[1723676549713,20.0,144.57,144.54,0.12549]
[1723676549926,20.0,144.57,144.49,17.3018]
[1723676550317,16.017,144.56,144.49,17.3018]
[1723676550611,20.0,144.55,144.49,17.3018]
[1723676550794,20.0,144.55,144.49,24.2225]
[1723676550989,20.0,144.55,144.5,0.12549]
[1723676551195,20.0,144.55,144.47,6.9218]
[1723676552519,16.0453,144.54,144.46,17.3049]
[1723676552681,20.0,144.53,144.46,24.2271]
[1723676553384,20.0,144.53,144.47,6.9218]
[1723676553582,20.0,144.53,144.46,24.2271]
[1723676553787,20.0,144.53,144.48,0.12549]
[1723676554108,20.0,144.53,144.48,0.25098]
[1723676558909,20.0,144.53,144.48,0.12549]
[1723676559090,20.0,144.53,144.45,7.22857336]
[1723676559294,15.3252,144.52,144.44,6.9232]
[1723676559627,20.0,144.51,144.44,6.9232]
[1723676559908,20.0,144.51,144.43,31.46201574]
[1723676560088,20.0,144.51,144.44,6.9231]
[1723676560283,20.0,144.51,144.45,45.0]
[1723676560491,26.4797,144.51,144.45,0.12549]
[1723676560787,15.3362,144.5,144.43,24.53841574]
[1723676560987,20.0,144.49,144.43,17.3086]
[1723676561390,20.0,144.49,144.41,6.9246]
[1723676562117,16.5164,144.46,144.4,7.23076466]
[1723676562338,16.5164,144.46,144.34,17.3195]
[1723676562624,15.7913,144.43,144.33,7.22849913]
[1723676563000,15.7913,144.41,144.29,12.9346]
[1723676563192,20.0,144.4,144.3,6.9299]
[1723676563495,15.7913,144.39,144.29,6.9304]
[1723676563698,6.522,144.37,144.28,7.22895389]
[1723676563898,20.0,144.36,144.28,7.22895389]
[1723676564205,20.0,144.36,144.28,6.9308]
[1723676565020,20.0,144.36,144.29,6.9302]
[1723676565194,20.0,144.36,144.28,17.3269]
[1723676565700,20.0,144.36,144.29,0.25098]
[1723676566098,20.0,144.36,144.29,7.18138]
[1723676566912,20.0,144.36,144.28,24.2578]
[1723676568205,20.0,144.36,144.29,0.25098]
[1723676568400,20.0,144.36,144.29,45.25098]
[1723676568598,20.0,144.36,144.3,0.25098]
[1723676569514,15.3977,144.35,144.3,0.25098]
[1723676569729,20.0,144.34,144.29,45.12549]
[1723676570024,20.0,144.34,144.22,6.9337]
[1723676570025,21.8694,144.33,144.22,6.9337]
[1723676570329,20.0,144.32,144.22,6.9337]
[1723676572233,20.0,144.32,144.21,24.2696]
[1723676573024,20.0,144.32,144.22,6.9337]
[1723676573806,20.0,144.32,144.24,0.12549]
[1723676574108,20.0,144.32,144.24,0.25098]
[1723676576326,15.0313,144.31,144.21,24.2696]
[1723676576533,20.0,144.3,144.21,24.2696]
[1723676577126,20.0,144.3,144.21,17.3354]
[1723676577937,20.0,144.3,144.22,45.50196]
[1723676579013,20.0,144.3,144.22,45.37647]
[1723676579213,20.0,144.3,144.23,0.12549]
[1723676581341,20.0,144.3,144.23,0.25098]
[1723676581632,20.0,144.3,144.25,0.12549]
[1723676581815,20.0,144.3,144.25,45.37647]
[1723676582014,20.0,144.3,144.26,0.12549]
[1723676582309,15.0313,144.31,144.26,0.12549]
[1723676582521,15.0313,144.31,144.27,0.12549]
[1723676582848,15.0313,144.31,144.27,52.43326]
[1723676583218,15.0313,144.31,144.27,45.50196]
[1723676583605,15.0313,144.31,144.27,62.82996]
[1723676584029,15.0313,144.31,144.29,0.12549]
[1723676584247,15.0313,144.31,144.29,45.50196]
[1723676584838,16.3524,144.36,144.29,62.82766]
[1723676585033,16.3524,144.36,144.32,0.12549]
[1723676585330,16.3524,144.36,144.32,45.50196]
[1723676585841,16.3524,144.36,144.33,45.0]
[1723676586143,16.3524,144.36,144.32,0.50196]
[1723676586738,20.0,144.35,144.32,0.50196]
[1723676586956,20.0,144.35,144.32,0.37647]
[1723676587118,20.0,144.35,144.26,17.3291]
[1723676587315,20.0,144.35,144.26,24.2609]
[1723676588016,20.0,144.35,144.25,6.9322]
[1723676588235,20.0,144.35,144.24,6.9328]
[1723676588939,15.8095,144.34,144.24,6.9328]
[1723676589119,20.0,144.33,144.24,6.9328]
[1723676590236,20.0,144.33,144.26,0.12549]
[1723676590734,20.0,144.33,144.23,24.266]
[1723676591230,20.0,144.33,144.24,6.9327]
[1723676591811,20.0,144.33,144.25,0.12549]
[1723676592018,22.2983,144.32,144.2,17.3363]
[1723676592311,20.0,144.31,144.22,17.3341]
[1723676593124,20.0,144.31,144.23,0.12549]
[1723676593327,20.0,144.31,144.23,45.50196]
[1723676594214,20.0,144.31,144.23,45.25098]
[1723676594420,20.0,144.31,144.23,0.25098]
[1723676596923,15.1315,144.3,144.23,0.25098]
[1723676597258,20.0,144.29,144.2,6.9347]
[1723676598336,20.0,144.29,144.21,45.50196]
[1723676598526,20.0,144.29,144.21,52.43626]
[1723676598841,15.1315,144.3,144.25,0.12549]
[1723676599140,15.1315,144.3,144.25,45.37647]
[1723676599333,15.1315,144.3,144.25,0.25098]
[1723676599531,15.1315,144.3,144.25,0.12549]
[1723676599736,15.1315,144.3,144.25,0.37647]
[1723676600341,20.0,144.29,144.24,45.12549]
[1723676600520,20.0,144.29,144.24,0.12549]
[1723676600723,20.0,144.29,144.24,0.25098]
[1723676602119,20.0,144.29,144.25,0.12549]
[1723676602325,20.0,144.29,144.24,0.25098]
[1723676604331,20.0,144.29,144.24,0.12549]
[1723676604534,20.0,144.29,144.23,45.25098]
[1723676604736,20.0,144.29,144.21,24.2696]
[1723676604940,20.0,144.29,144.22,0.12549]
[1723676606025,20.0,144.29,144.23,0.12549]
[1723676610649,20.0,144.29,144.23,0.37647]
[1723676613172,15.1315,144.3,144.24,0.12549]
[1723676613350,15.1315,144.3,144.25,7.05789]
[1723676613544,15.1315,144.3,144.26,0.37647]
[1723676613748,15.1315,144.3,144.27,0.12549]
[1723676616253,15.1315,144.3,144.27,7.05669]
[1723676616452,15.3665,144.36,144.29,0.12549]
[1723676616660,15.3665,144.36,144.32,0.12549]
[1723676616877,15.3665,144.36,144.32,0.25098]
[1723676617171,15.3665,144.36,144.33,0.12549]
[1723676617338,15.3665,144.36,144.33,0.25098]
[1723676617544,15.3665,144.36,144.34,0.12549]
[1723676617783,15.3665,144.36,144.34,0.37647]
[1723676617936,15.3665,144.36,144.35,0.12549]
[1723676618140,15.3665,144.36,144.35,0.50196]
[1723676619355,15.3665,144.36,144.35,0.37647]
[1723676619574,15.3665,144.36,144.34,0.12549]
[1723676619810,15.3665,144.36,144.34,0.50196]
[1723676622878,15.3114,144.4,144.34,0.50196]
[1723676623067,20.0,144.39,144.34,0.50196]
[1723676623380,20.0,144.39,144.34,8.81517056]
[1723676623588,20.0,144.39,144.36,0.12549]
[1723676623778,15.3114,144.4,144.36,0.50196]
[1723676623979,15.3114,144.4,144.36,7.42876]
[1723676624310,15.3114,144.4,144.38,0.12549]
[1723676624469,15.3114,144.4,144.38,0.50196]
[1723676625269,6.5116,144.45,144.38,0.50196]
[1723676625496,16.6028,144.44,144.4,0.12549]
[1723676625763,16.6028,144.44,144.42,0.12549]
[1723676625991,16.6028,144.44,144.42,45.50196]
[1723676626212,16.6028,144.44,144.42,0.50196]
[1723676626381,16.6028,144.44,144.43,0.12549]
[1723676626579,16.6028,144.44,144.43,0.37647]
[1723676626765,6.2506,144.49,144.43,0.50196]
[1723676626966,16.6028,144.48,144.44,0.12549]
[1723676627325,16.6028,144.48,144.44,1.88574795]
[1723676627491,16.6028,144.48,144.44,46.88574795]
[1723676627696,16.6028,144.48,144.44,1.88574795]
[1723676627899,16.6028,144.48,144.45,45.0]
[1723676628196,16.6028,144.48,144.44,1.88574795]
[1723676628773,16.6028,144.48,144.44,0.50196]
[1723676629209,20.0,144.47,144.44,0.50196]
[1723676635106,20.0,144.47,144.44,0.37647]
[1723676639516,20.0,144.47,144.44,0.25098]
[1723676639844,20.0,144.47,144.42,45.0]
[1723676640038,20.0,144.47,144.43,0.12549]
[1723676640209,20.0,144.47,144.42,0.37647]
[1723676642544,20.0,144.47,144.43,0.12549]
[1723676643036,20.0,144.47,144.43,7.04909]
[1723676643251,20.0,144.47,144.45,0.12549]
[1723676645110,20.0,144.47,144.45,7.04779]
[1723676645319,20.0,144.47,144.44,45.37647]
[1723676645320,16.6028,144.48,144.47,0.12549]
[1723676645649,16.2101,144.52,144.47,0.12549]
[1723676645941,16.2101,144.52,144.47,0.37647]
[1723676646165,16.2101,144.52,144.48,0.12549]
[1723676646368,16.2101,144.52,144.49,0.12549]
[1723676646661,16.2101,144.52,144.49,0.25098]
[1723676647258,20.0,144.51,144.49,0.25098]
[1723676648952,20.0,144.51,144.49,0.12549]
[1723676649157,20.0,144.51,144.42,17.3098]
[1723676650743,20.0,144.51,144.43,45.37647]
[1723676651041,20.0,144.51,144.44,0.12549]
[1723676651239,20.0,144.51,144.43,45.37647]
[1723676651240,6.1631,144.49,144.39,17.3134]
[1723676651455,6.1631,144.49,144.38,6.9258]
[1723676651456,36.3024,144.48,144.38,6.9258]
[1723676652253,36.3024,144.48,144.38,17.3148]
[1723676652648,36.3024,144.48,144.39,45.50196]
[1723676652853,36.3024,144.48,144.41,0.12549]
[1723676653054,36.3024,144.48,144.41,45.37647]
[1723676653229,36.3024,144.48,144.42,0.12549]
[1723676653428,36.3024,144.48,144.42,0.37647]
[1723676653625,36.3024,144.48,144.43,0.12549]
[1723676656766,36.3024,144.48,144.43,0.25098]
[1723676656932,36.3024,144.48,144.44,0.25098]
[1723676660264,36.3024,144.48,144.44,0.12549]
[1723676663557,36.3024,144.48,144.43,0.12549]
[1723676663765,36.3024,144.48,144.42,0.50196]
[1723676671971,16.3024,144.48,144.42,0.50196]
[1723676672164,15.3128,144.52,144.48,0.12549]
[1723676673672,20.0,144.51,144.48,0.12549]
[1723676674045,20.0,144.51,144.47,45.37647]
[1723676674541,20.0,144.51,144.47,0.37647]
[1723676675775,20.0,144.51,144.48,0.12549]
[1723676677307,20.0,144.51,144.47,0.12549]
[1723676677601,20.0,144.51,144.43,24.2322]
[1723676678191,20.0,144.51,144.44,6.923]
[1723676678779,20.0,144.51,144.45,45.50196]
[1723676683603,20.0,144.51,144.45,52.42456]
[1723676687610,20.0,144.51,144.46,6.9223]
[1723676687812,20.0,144.51,144.47,45.50196]
[1723676691913,15.3128,144.52,144.47,45.50196]
[1723676692511,15.3128,144.52,144.49,17.3017]
[1723676692710,15.2771,144.56,144.5,45.50196]
[1723676692925,15.2771,144.56,144.5,52.42196]
[1723676693524,20.0,144.55,144.5,52.42196]
[1723676697099,20.0,144.55,144.51,6.9198]
[1723676697300,20.0,144.55,144.52,45.50196]
[1723676697511,20.0,144.55,144.52,52.42096]
[1723676697713,15.2771,144.56,144.52,52.42096]
[1723676700227,39.3332,144.61,144.54,0.12549]
[1723676700543,39.3332,144.61,144.54,45.50196]
[1723676701210,20.0,144.6,144.54,45.50196]
[1723676702531,20.0,144.6,144.54,0.37647]
[1723676703155,16.4788,144.59,144.47,23.8836]
[1723676703305,20.0,144.58,144.48,6.921]
[1723676703512,20.0,144.58,144.47,30.8053]
[1723676703711,20.0,144.58,144.47,23.8836]
[1723676703912,21.81649,144.57,144.47,17.3039]
[1723676704224,20.0,144.56,144.45,6.9227]
[1723676704636,20.0,144.56,144.46,6.922]
[1723676705132,20.0,144.56,144.44,24.2304]
[1723676705334,20.0,144.56,144.45,0.12549]
[1723676705934,20.0,144.56,144.45,7.04819]
[1723676706435,15.3908,144.55,144.43,6.238]
[1723676706639,20.0,144.54,144.43,6.238]
[1723676706931,20.0,144.54,144.43,13.1616]
[1723676707439,20.0,144.54,144.44,6.9231]
[1723676707733,20.0,144.54,144.45,0.12549]
[1723676707932,20.0,144.54,144.45,0.25098]
[1723676708326,20.0,144.54,144.46,0.12549]
[1723676708812,15.3317,144.53,144.46,0.12549]
[1723676709012,20.0,144.52,144.46,0.12549]
[1723676710366,20.0,144.52,144.46,0.25098]
[1723676710641,15.3317,144.53,144.48,7.04679]
[1723676710841,15.3317,144.53,144.49,45.25098]
[1723676711450,15.3317,144.53,144.49,45.0]
[1723676712145,20.0,144.52,144.48,45.37647]
[1723676712349,20.0,144.52,144.48,52.29767]
[1723676712527,15.3317,144.53,144.49,0.12549]
[1723676712852,15.3317,144.53,144.49,0.25098]
[1723676713221,15.3317,144.53,144.5,0.37647]
[1723676713727,15.3317,144.53,144.44,6.0547]
[1723676713932,15.3317,144.53,144.46,6.9219]
[1723676714321,20.0,144.52,144.46,6.9219]
[1723676714915,20.0,144.52,144.47,6.9213]
[1723676715244,20.0,144.52,144.48,45.50196]
[1723676719145,20.0,144.52,144.45,24.2289]
[1723676719963,20.0,144.52,144.45,17.3064]
[1723676720326,20.0,144.52,144.47,6.9215]
[1723676720529,20.0,144.52,144.48,45.50196]
[1723676720739,20.0,144.52,144.46,45.0]
[1723676720936,20.0,144.52,144.47,0.12549]
[1723676721330,20.0,144.52,144.47,0.25098]
[1723676724227,20.0,144.52,144.48,0.12549]
[1723676725538,20.0,144.52,144.48,45.25098]
[1723676725748,20.0,144.52,144.49,0.25098]
[1723676727761,15.3317,144.53,144.5,0.37647]
[1723676727961,15.3317,144.53,144.5,45.37647]
[1723676729163,15.3317,144.53,144.51,0.12549]
[1723676730132,22.7076,144.57,144.51,7.17078]
[1723676730454,20.0,144.56,144.52,45.37647]
[1723676730757,20.0,144.56,144.53,0.25098]
[1723676731140,22.7076,144.57,144.53,0.25098]
[1723676731349,20.0,144.56,144.53,0.25098]
[1723676732239,20.0,144.56,144.53,0.12549]
[1723676732477,20.0,144.56,144.49,17.3016]
[1723676732638,20.0,144.56,144.5,0.12549]
[1723676733631,20.0,144.56,144.5,0.37647]
[1723676733832,20.0,144.56,144.46,17.3052]
[1723676734078,15.2545,144.55,144.46,17.3052]
[1723676734370,20.0,144.54,144.44,20.2116767]
[1723676734664,20.0,144.54,144.44,14.1569767]
[1723676735764,20.0,144.54,144.45,45.50196]
[1723676738656,6.1313,144.52,144.45,0.12549]
[1723676738975,20.0,144.51,144.45,0.25098]
[1723676740072,15.2545,144.53,144.48,0.12549]
[1723676740246,15.2545,144.53,144.48,45.50196]
[1723676740837,15.2545,144.53,144.48,45.37647]
[1723676741041,15.2545,144.53,144.48,45.0]
[1723676741377,20.0,144.52,144.48,45.0]
[1723676743157,20.0,144.52,144.49,0.12549]
[1723676743365,20.0,144.52,144.48,0.50196]
[1723676744783,15.2545,144.53,144.48,0.50196]
[1723676746284,15.2545,144.53,144.48,7.42326]
[1723676746494,15.2545,144.53,144.5,0.12549]
[1723676746657,15.2545,144.53,144.5,0.37647]
[1723676753595,15.2545,144.53,144.5,0.25098]
[1723676753896,15.2545,144.53,144.49,45.0]
[1723676754375,15.2545,144.53,144.48,45.50196]
[1723676754568,15.2545,144.53,144.43,17.3087]
[1723676754773,20.0,144.52,144.43,17.3087]
[1723676755864,20.0,144.52,144.44,6.9229]
[1723676756061,20.0,144.52,144.46,0.12549]
[1723676756466,20.0,144.52,144.43,17.3087]
[1723676756865,20.0,144.52,144.43,24.2324]
[1723676757162,20.0,144.52,144.42,7.2381089]
[1723676757478,21.7065,144.51,144.41,13.5491]
[1723676757677,20.0,144.5,144.42,6.9242]
[1723676758564,20.0,144.5,144.43,0.12549]
[1723676758773,20.0,144.5,144.43,45.25098]
[1723676759698,20.0,144.5,144.43,0.25098]
[1723676759880,20.0,144.5,144.44,45.0]
[1723676760081,20.0,144.5,144.43,0.25098]
[1723676765984,20.0,144.5,144.44,0.25098]
[1723676766183,20.0,144.5,144.45,0.12549]
[1723676766883,20.0,144.5,144.45,0.25098]
[1723676767896,20.0,144.5,144.46,0.12549]
[1723676768105,20.0,144.5,144.46,0.25098]
[1723676768281,21.7065,144.51,144.47,0.12549]
[1723676768282,15.28,144.51,144.47,0.12549]
[1723676768480,15.28,144.51,144.47,0.37647]
[1723676768716,15.28,144.51,144.48,0.12549]
[1723676768883,15.28,144.51,144.48,0.25098]
[1723676769712,20.0,144.5,144.48,0.25098]
[1723676770692,20.0,144.5,144.49,0.12549]
[1723676776509,20.0,144.5,144.44,17.3078]
[1723676777018,20.0,144.5,144.41,24.54316856]
[1723676777189,15.0598,144.49,144.41,31.46786856]
[1723676777390,20.0,144.48,144.41,24.2355]
[1723676778419,20.0,144.48,144.43,0.12549]
[1723676778594,20.0,144.48,144.42,45.37647]
[1723676778797,20.0,144.48,144.42,45.25098]
[1723676780212,20.0,144.48,144.42,45.12549]
[1723676780394,20.0,144.48,144.41,45.0]
[1723676780603,20.0,144.48,144.4,45.12549]
[1723676781406,20.0,144.48,144.41,0.12549]
[1723676781718,20.0,144.48,144.41,7.17568]
[1723676781919,20.0,144.48,144.42,45.0]
[1723676782216,20.0,144.48,144.43,0.37647]
[1723676782424,20.0,144.48,144.43,0.50196]
[1723676784288,20.0,144.48,144.43,0.25098]
[1723676784601,20.0,144.48,144.42,45.0]
[1723676784797,20.0,144.48,144.41,45.37647]
[1723676784996,20.0,144.48,144.41,52.30107]
[1723676794950,20.0,144.48,144.41,45.37647]
[1723676797750,20.0,144.48,144.41,52.30107]
[1723676800248,20.0,144.48,144.44,0.12549]
[1723676800454,20.0,144.48,144.44,45.37647]
[1723676800815,15.0598,144.49,144.44,45.37647]
[1723676801020,16.3087,144.53,144.48,0.12549]
[1723676801255,16.3087,144.53,144.48,46.48329323]
[1723676801462,16.3087,144.53,144.49,0.12549]
[1723676801623,16.3087,144.53,144.5,0.12549]
[1723676801824,16.3087,144.53,144.5,45.12549]
[1723676802432,16.3087,144.53,144.5,0.12549]
[1723676803248,16.3087,144.53,144.5,1.23267002]
[1723676803449,12.4757241,144.6,144.52,0.12549]
[1723676803450,15.9421,144.57,144.52,0.12549]
[1723676803649,15.9421,144.57,144.52,52.29567]
[1723676803831,15.9421,144.57,144.53,0.12549]
[1723676804028,15.9421,144.57,144.53,0.25098]
[1723676805240,20.0,144.56,144.53,0.25098]
[1723676808234,20.0,144.56,144.54,0.12549]
[1723676808447,15.9421,144.57,144.54,45.37647]
[1723676808751,15.9421,144.57,144.54,45.25098]
[1723676808956,15.9421,144.57,144.54,45.0]
[1723676809154,15.9421,144.57,144.54,0.12549]
[1723676809673,15.9421,144.57,144.53,45.25098]
[1723676810569,22.3806,144.57,144.44,20.0]
[1723676810737,20.0,144.56,144.44,20.0]
[1723676810937,15.9726,144.55,144.44,1.58246627]
[1723676811356,20.0,144.54,144.44,1.58246627]
[1723676811674,15.9726,144.53,144.44,1.58246627]
[1723676811897,20.0,144.52,144.44,8.50566627]
[1723676812067,20.0,144.52,144.44,1.58246627]
[1723676812873,20.0,144.52,144.45,7.17368]
[1723676813081,20.0,144.52,144.46,45.37647]
[1723676813283,20.0,144.52,144.47,0.25098]
[1723676815696,20.0,144.52,144.47,0.12549]
[1723676815995,20.0,144.52,144.46,45.12549]
[1723676816205,20.0,144.52,144.46,0.12549]
[1723676816492,20.0,144.52,144.47,45.0]
[1723676816691,20.0,144.52,144.46,0.12549]
[1723676820586,6.4687,144.51,144.45,0.12549]
[1723676820757,20.0,144.5,144.43,17.309]
[1723676821157,16.6597,144.49,144.41,7.23392432]
[1723676821390,20.0,144.48,144.41,14.15822432]
[1723676821885,20.0,144.48,144.42,7.04969]
[1723676822089,20.0,144.48,144.43,45.12549]
[1723676823462,20.0,144.48,144.43,0.12549]
[1723676824180,20.0,144.48,144.44,0.12549]
[1723676826483,20.0,144.48,144.44,45.37647]
[1723676826671,20.0,144.48,144.45,0.12549]
[1723676826870,20.0,144.48,144.46,0.12549]
[1723676827674,20.0,144.48,144.46,45.12549]
[1723676827866,20.0,144.48,144.46,0.12549]
[1723676833495,20.0,144.48,144.45,0.12549]
[1723676836590,20.0,144.48,144.44,45.0]
[1723676836969,20.0,144.48,144.41,31.46932432]
[1723676837192,15.0548,144.47,144.38,17.3148]
[1723676837393,20.0,144.46,144.38,17.3148]
[1723676837998,20.0,144.46,144.39,6.9253]
[1723676838678,20.0,144.46,144.4,0.25098]
[1723676838883,20.0,144.46,144.4,45.25098]
[1723676841597,15.0548,144.44,144.37,7.23757761]
[1723676841785,20.0,144.43,144.35,24.246]
[1723676842779,20.0,144.43,144.36,6.9269]
[1723676843388,20.0,144.43,144.37,0.12549]
[1723676843597,20.0,144.43,144.4,6.9252]
[1723676843901,20.0,144.43,144.36,0.12549]
[1723676844279,20.0,144.43,144.38,6.9259]
[1723676844596,20.0,144.43,144.39,45.37647]
[1723676844796,20.0,144.43,144.39,45.0]
[1723676845001,20.0,144.43,144.38,45.37647]
[1723676845209,20.0,144.43,144.38,0.37647]
[1723676845507,20.0,144.43,144.39,45.0]
[1723676845808,20.0,144.43,144.38,0.12549]
[1723676847777,20.0,144.43,144.37,45.0]
[1723676848592,20.0,144.43,144.38,7.42796]
[1723676848797,20.0,144.43,144.39,45.0]
[1723676849277,20.0,144.43,144.38,45.12549]
[1723676849480,20.0,144.43,144.41,7.05019]
[1723676849699,15.0548,144.44,144.42,51.9242]
[1723676850297,15.0548,144.44,144.42,45.0]
[1723676855391,16.3843,144.48,144.42,45.0]
[1723676855711,20.0,144.47,144.42,45.0]
[1723676855912,20.0,144.47,144.43,0.12549]
[1723676856116,20.0,144.47,144.43,7.42566]
[1723676856290,20.0,144.47,144.44,45.0]
[1723676857220,16.3843,144.48,144.45,0.12549]
[1723676858118,16.3843,144.48,144.45,1.50937006]
[1723676858305,16.3843,144.48,144.45,1.63486006]
[1723676858815,16.3843,144.48,144.45,0.25098]
[1723676859715,16.3843,144.48,144.45,0.12549]
[1723676860810,16.3843,144.48,144.44,45.0]
[1723676861016,20.0,144.47,144.44,45.0]
[1723676861187,20.0,144.47,144.41,17.3111]